bitfinex-derivatives/quotes_ETHF0:USTF0_20250316
["timestamp","ask_amount","ask_price","bid_price","bid_amount"]
[1742123116270,3.2078,1897.3,1897.2,2.05309736]
[1742123116969,0.00790264,1897.9,1897.2,7.76089736]
[1742123117169,0.00790264,1897.9,1897.3,2.77969736]
[1742123117471,0.00790264,1897.9,1897.5,3.2078]
[1742123117668,0.00790264,1897.9,1897.6,47.41009736]
[1742123117862,3.21570264,1897.9,1897.6,47.41009736]
[1742123118062,3.21570264,1897.9,1897.7,2.05309736]
[1742123118460,3.21570264,1897.9,1897.8,2.05309736]
[1742123118667,3.21570264,1897.9,1897.7,2.05309736]
[1742123118867,3.21570264,1897.9,1897.7,4.548]
[1742123119066,5.71570264,1897.9,1897.4,4.55]
[1742123119272,3.2078,1897.7,1897.4,4.55]
[1742123119464,3.2078,1897.7,1897.5,3.44889736]
[1742123119666,3.21570264,1897.9,1897.5,4.17549736]
[1742123119971,3.21570264,1897.9,1897.6,2.05309736]
[1742123120167,0.00790264,1897.9,1897.7,3.39349736]
[1742123120472,0.00790264,1897.9,1897.8,4.551]
[1742123120665,0.00790264,1897.9,1897.8,6.60409736]
[1742123121667,0.00790264,1897.9,1897.8,2.05309736]
[1742123121973,0.00790264,1897.9,1897.8,6.58809736]
[1742123124075,0.00790264,1897.9,1897.8,4.535]
[1742123124377,2.50790264,1897.9,1897.1,4.516]
[1742123124574,3.2078,1897.2,1897.1,5.965]
[1742123124972,3.2078,1897.4,1897.1,8.01809736]
[1742123125173,3.2078,1897.4,1897.2,3.50209736]
[1742123125567,3.2078,1897.4,1897.3,2.05309736]
[1742123127064,3.89660264,1897.9,1897.3,2.05309736]
[1742123127264,3.89660264,1897.9,1897.4,3.50039736]
[1742123127470,3.89660264,1897.9,1897.5,4.533]
[1742123127671,3.89660264,1897.9,1897.6,1.4473]
[1742123127871,3.89660264,1897.9,1897.6,3.50039736]
[1742123128076,3.89660264,1897.9,1897.7,2.05309736]
[1742123128275,3.2078,1897.8,1897.7,3.50039736]
[1742123128574,3.2078,1897.8,1897.7,1.4473]
[1742123128770,3.2078,1897.8,1897.7,3.50039736]
[1742123128978,4.5526,1897.8,1897.7,4.52]
[1742123129179,5.2339,1897.8,1897.7,4.52]
[1742123129581,4.5526,1897.8,1897.7,6.57309736]
[1742123129882,3.2078,1897.8,1897.7,6.57309736]
[1742123130680,4.6093,1897.8,1897.7,6.57309736]
[1742123131381,7.1093,1897.8,1897.4,33.735]
[1742123131574,3.2078,1897.5,1897.4,33.735]
[1742123131769,3.2078,1897.5,1897.4,4.507]
[1742123132282,5.7078,1897.5,1897.2,4.505]
[1742123132477,3.2078,1897.3,1897.2,4.505]
[1742123132779,3.2078,1897.3,1896.9,42.23]
[1742123132977,1.4149,1897.2,1897.0,4.498]
[1742123133184,1.4149,1897.2,1896.0,29.229]
[1742123133185,3.2078,1897.1,1896.0,29.229]
[1742123133374,2.074,1897.2,1896.1,6.55909736]
[1742123133375,3.2078,1896.3,1896.1,6.55909736]
[1742123133579,3.2078,1896.3,1896.2,40.8]
[1742123133880,1.4149,1897.0,1896.2,44.28309736]
[1742123133881,0.00790264,1896.4,1896.2,44.28309736]
[1742123134079,0.00790264,1896.4,1896.3,2.05309736]
[1742123135183,1.42280264,1896.4,1896.3,2.05309736]
[1742123135384,0.00790264,1896.4,1896.3,2.05309736]
[1742123135584,0.00790264,1896.4,1896.3,6.55709736]
[1742123136684,0.00790264,1896.4,1896.3,2.05309736]
[1742123136885,0.00790264,1896.4,1896.3,47.34509736]
[1742123137385,3.2078,1897.0,1896.3,47.3728]
[1742123137687,3.2078,1897.0,1896.5,3.2078]
[1742123137890,1.4391,1897.1,1896.7,3.2078]
[1742123138078,3.2078,1897.2,1896.8,5.8474]
[1742123138378,0.7116,1897.4,1897.1,3.2078]
[1742123138574,4.5932,1897.6,1897.2,5.9474]
[1742123138777,0.00790264,1897.4,1897.2,5.9474]
[1742123138981,0.00790264,1897.4,1897.3,40.8]
[1742123140185,3.2078,1897.7,1897.3,43.3]
[1742123140380,3.2078,1897.9,1897.3,44.67]
[1742123140687,3.2078,1897.9,1897.4,1.4584]
[1742123141187,3.2078,1898.1,1897.7,3.2078]
[1742123141492,1.3854,1898.4,1897.8,35.1654]
[1742123141685,0.00790264,1898.1,1897.8,35.1654]
[1742123142284,0.00790264,1898.1,1897.9,1.3867]
[1742123142589,3.2078,1898.0,1897.8,29.234]
[1742123142789,1.3521,1897.9,1897.8,29.234]
[1742123142979,1.3521,1897.9,1897.8,33.701]
[1742123143785,1.3521,1897.9,1897.8,4.467]
[1742123146294,2.0797,1897.9,1897.8,4.467]
[1742123146784,2.0797,1897.9,1897.7,0.00790264]
[1742123146989,3.2078,1897.8,1897.7,0.00790264]
[1742123147180,4.6617,1897.8,1897.3,1.3867]
[1742123147375,4.6617,1897.8,1897.2,29.231]
[1742123147376,3.2078,1897.5,1897.2,29.231]
[1742123147580,3.2078,1897.3,1897.2,29.231]
[1742123148087,3.2078,1897.5,1897.2,29.231]
[1742123148484,3.2078,1897.5,1897.2,29.23890264]
[1742123148789,3.2078,1897.5,1897.3,1.3529]
[1742123148988,3.2078,1897.5,1897.4,4.446]
[1742123150586,18.36298854,1897.6,1897.4,4.446]
[1742123150988,19.75028854,1897.6,1897.4,4.446]
[1742123151185,19.75028854,1897.6,1897.5,1.3466]
[1742123152779,18.36298854,1897.6,1897.5,1.3466]
[1742123153883,10.261417,1897.6,1897.5,3.8466]
[1742123154493,4.54090264,1898.1,1897.5,1.3466]
[1742123154790,4.54090264,1898.1,1897.6,3.2078]
[1742123154990,4.54090264,1898.1,1897.7,1.326]
[1742123155190,4.54090264,1898.1,1897.8,4.398]
[1742123155497,4.54090264,1898.1,1897.9,1.326]
[1742123156481,4.54090264,1898.1,1898.0,4.385]
[1742123156990,3.21570264,1898.1,1898.0,4.385]
[1742123160395,0.00790264,1898.1,1898.0,4.385]
[1742123160600,1.44590264,1898.1,1898.0,4.385]
[1742123164598,1.44590264,1898.1,1897.9,1.3773]
[1742123164799,1.44590264,1898.1,1898.0,45.143]
[1742123165190,0.00790264,1898.1,1898.0,45.143]
[1742123165598,1.33030264,1898.1,1898.0,4.343]
[1742123166503,1.33030264,1898.1,1898.0,4.329]
[1742123167902,1.33030264,1898.1,1898.0,4.324]
[1742123168998,1.33030264,1898.1,1897.9,4.313]
[1742123169199,9.0338,1898.0,1897.5,3.2078]
[1742123169397,3.2078,1897.6,1897.4,1.3328]
[1742123169596,1.4633,1897.5,1897.4,1.3328]
[1742123169795,1.4633,1897.5,1897.4,46.4438]
[1742123170604,1.4633,1897.5,1897.4,46.4358]
[1742123170795,1.4633,1897.5,1897.4,42.1328]
[1742123171102,1.4633,1897.5,1897.2,32.44670264]
[1742123171305,1.4633,1897.5,1897.3,4.298]
[1742123171510,1.4633,1897.5,1897.3,5.6308]
[1742123171698,1.4633,1897.5,1897.4,42.1328]
[1742123172003,1.4633,1897.5,1897.4,40.8]
[1742123172198,1.4633,1897.5,1897.3,4.293]
[1742123172199,7.2893,1897.5,1897.3,4.293]
[1742123172398,3.2078,1897.4,1897.3,4.293]
[1742123172702,4.5311,1897.4,1897.3,5.643]
[1742123172898,3.2078,1897.4,1897.3,5.643]
[1742123173098,3.2078,1897.6,1897.3,5.643]
[1742123173301,3.2078,1897.6,1897.4,1.35]
[1742123173504,3.2078,1897.6,1897.5,40.8]
[1742123175102,3.2078,1897.6,1897.5,45.096]
[1742123176107,0.6935,1897.9,1897.5,45.096]
[1742123176406,0.6935,1897.9,1897.6,2.003]
[1742123176607,3.2078,1898.0,1897.7,1.3178]
[1742123176809,4.6666,1898.0,1897.7,1.3178]
[1742123177602,3.2078,1897.8,1897.7,1.3178]
[1742123177806,3.2078,1897.8,1897.7,4.281]
[1742123178001,3.2078,1897.8,1897.6,4.282]
[1742123178203,1.4056,1897.7,1897.6,4.281]
[1742123179005,3.2078,1897.8,1897.6,4.281]
[1742123179206,3.2078,1897.8,1897.7,1.436]
[1742123179407,3.2078,1897.8,1897.6,4.281]
[1742123179711,0.7197,1897.7,1897.5,4.281]
[1742123179909,3.2078,1897.6,1897.5,4.281]
[1742123180108,3.2078,1897.6,1897.5,4.279]
[1742123180314,11.5338,1897.6,1897.2,0.00790264]
[1742123180608,3.2078,1897.3,1896.5,4.294]
[1742123180812,3.2078,1896.9,1896.6,40.8]
[1742123181309,3.2078,1896.9,1896.5,5.73]
[1742123181310,3.2078,1896.7,1896.5,4.292]
[1742123181507,3.2078,1896.7,1896.2,4.296]
[1742123181711,3.2078,1896.5,1896.3,40.8]
[1742123181913,3.2078,1896.5,1896.3,45.096]
[1742123182112,3.2078,1896.5,1896.3,40.8]
[1742123182510,10.121,1896.4,1895.2,3.2078]
[1742123182808,3.2078,1895.7,1895.2,8.9017]
[1742123183014,3.2078,1895.9,1895.4,3.2078]
[1742123183215,0.00790264,1895.6,1895.5,1.3939]
[1742123183405,0.00790264,1895.6,1895.5,5.6969]
[1742123183804,0.00790264,1895.6,1895.3,40.8]
[1742123184016,3.21570264,1895.6,1895.4,4.308]
[1742123184205,9.04170264,1895.6,1895.4,4.308]
[1742123184410,11.54170264,1895.6,1895.0,4.308]
[1742123184617,3.2078,1895.4,1895.0,4.308]
[1742123184817,3.2078,1895.4,1894.8,1.3767]
[1742123185021,3.2078,1895.4,1894.9,4.312]
[1742123185215,3.2078,1895.2,1894.7,41.58446531]
[1742123185518,3.2078,1895.0,1894.7,12.35846531]
[1742123185907,3.2078,1894.8,1894.7,12.35846531]
[1742123186218,5.826,1895.1,1894.7,12.35846531]
[1742123186416,3.2078,1895.2,1894.8,1.3767]
[1742123186717,3.2078,1895.2,1894.9,4.312]
[1742123187215,3.2078,1895.2,1895.0,40.8]
[1742123187406,3.2078,1895.4,1895.0,42.1335]
[1742123188415,5.826,1895.5,1895.1,3.2078]
[1742123188718,3.21570264,1895.6,1895.2,1.3335]
[1742123188917,3.2078,1895.4,1895.1,4.322]
[1742123189113,5.826,1895.3,1895.1,4.322]
[1742123189311,3.2078,1895.2,1895.1,4.322]
[1742123189513,3.2078,1895.2,1894.8,4.325]
[1742123189713,4.5542,1895.2,1894.8,4.325]
[1742123189920,3.2078,1895.0,1894.8,4.325]
[1742123190220,5.826,1895.0,1894.8,45.125]
[1742123190418,3.2078,1895.0,1894.9,1.3277]
[1742123190718,3.2078,1895.0,1894.8,45.125]
[1742123190719,3.2078,1895.0,1894.8,4.325]
[1742123190917,3.2078,1895.0,1894.8,5.6527]
[1742123191120,5.826,1895.1,1894.9,42.1277]
[1742123191419,5.826,1895.1,1894.9,40.8]
[1742123191721,9.0338,1895.1,1894.9,40.8]
[1742123192016,11.5338,1895.1,1894.7,29.245]
[1742123192320,9.0338,1895.1,1894.7,70.045]
[1742123192521,5.826,1895.0,1894.7,70.045]
[1742123192717,6.5114,1895.0,1894.7,70.045]
[1742123193818,5.826,1895.0,1894.7,70.045]
[1742123194018,5.826,1895.0,1894.8,1.4611]
[1742123194524,5.826,1895.0,1894.7,70.045]
[1742123194721,3.2078,1894.9,1894.6,0.001]
[1742123194925,3.2078,1894.7,1894.6,0.001]
[1742123195217,9.0338,1894.7,1894.0,29.255]
[1742123195419,3.2078,1894.1,1893.6,2.1517]
[1742123195728,3.2078,1893.9,1893.5,4.374]
[1742123195922,3.2078,1893.9,1893.5,5.8351]
[1742123196110,3.2078,1893.9,1893.1,3.2078]
[1742123196419,5.826,1893.9,1893.5,3.2078]
[1742123196617,0.00790264,1894.0,1893.7,3.2078]
[1742123196816,0.00690264,1894.0,1893.9,3.2078]
[1742123197217,0.00690264,1894.0,1893.9,50.61]
[1742123197426,0.00690264,1894.0,1893.9,46.522]
[1742123197813,0.00690264,1894.0,1893.9,49.7298]
[1742123198320,0.00690264,1894.0,1893.9,52.2298]
[1742123198521,5.826,1894.5,1893.9,52.2298]
[1742123198718,3.2078,1894.4,1893.9,42.13]
[1742123198923,3.2078,1894.0,1893.8,0.00118869]
[1742123199122,1.4267,1893.9,1893.8,0.00118869]
[1742123199316,7.2527,1893.9,1893.8,40.80118869]
[1742123199726,9.7527,1893.9,1893.1,4.406]
[1742123199936,5.826,1893.8,1893.3,3.2078]
[1742123200126,0.00790264,1894.0,1893.6,3.2078]
[1742123200319,0.00790264,1894.0,1893.9,3.2078]
[1742123200320,0.00671395,1894.0,1893.9,3.2078]
[1742123200517,0.00671395,1894.0,1893.6,3.2078]
[1742123200826,3.2078,1893.7,1892.2,3.2078]
[1742123201023,3.2078,1892.7,1892.3,45.43]
[1742123201222,3.2078,1893.1,1892.5,3.2078]
[1742123201423,3.2078,1893.1,1892.7,3.2078]
[1742123201618,4.631,1894.2,1892.7,3.2078]
[1742123201619,0.00792414,1893.0,1892.7,3.2078]
[1742123201814,0.00792414,1893.0,1892.8,4.5982]
[1742123202018,3.2078,1893.5,1892.9,30.6634]
[1742123202219,1.4267,1893.8,1892.9,35.3204]
[1742123202220,3.21572414,1893.1,1892.9,35.3204]
[1742123202528,3.21572414,1893.1,1892.9,30.6634]
[1742123202725,3.21572414,1893.1,1892.7,0.00792414]
[1742123202931,3.2078,1892.9,1892.7,0.00792414]
[1742123203121,1.4274,1892.8,1892.3,40.8]
[1742123203315,1.4572,1893.0,1892.3,40.8]
[1742123203316,3.2078,1892.6,1892.4,1.3888]
[1742123203622,3.2078,1892.6,1892.5,4.757]
[1742123203821,3.2078,1892.8,1892.5,4.757]
[1742123204122,3.2078,1892.6,1892.4,29.273]
[1742123204826,3.2078,1892.6,1892.3,40.8]
[1742123205027,1.4274,1892.7,1892.3,40.8]
[1742123205028,3.2078,1892.4,1892.3,40.8]
[1742123205214,3.2078,1892.4,1892.0,1.3888]
[1742123205419,3.2078,1892.1,1891.6,3.2078]
[1742123205619,3.2078,1891.8,1891.1,4.863]
[1742123205827,3.2078,1891.7,1891.4,3.2078]
[1742123206032,0.00792414,1891.6,1891.5,34.8183]
[1742123206327,3.2078,1892.4,1891.5,42.1298]
[1742123206518,3.2078,1891.9,1891.5,2.0078]
[1742123206718,3.18826327,1891.7,1891.5,2.0078]
[1742123207315,3.2078,1891.9,1891.6,40.8]
[1742123207519,1.46682414,1891.8,1891.6,40.8]
[1742123207726,3.2078,1891.7,1891.6,40.8]
[1742123208122,5.7078,1891.7,1891.4,0.00792414]
[1742123208326,3.2078,1891.5,1891.4,0.00792414]
[1742123208721,7.1011,1891.5,1891.4,0.00792414]
[1742123208922,4.6011,1891.5,1891.4,0.00792414]
[1742123209125,22.7071,1891.5,1891.4,0.00792414]
[1742123209324,4.6011,1891.5,1891.4,0.00792414]
[1742123209719,3.2078,1891.5,1891.4,0.00792414]
[1742123209930,3.2078,1891.7,1891.4,0.00792414]
[1742123210318,3.2078,1891.5,1891.4,0.00792414]
[1742123210720,22.7071,1891.5,1891.4,0.00792414]
[1742123211418,22.7071,1891.5,1888.8,3.2078]
[1742123211419,3.2078,1890.7,1888.8,3.2078]
[1742123211623,3.2078,1889.3,1888.8,3.2078]
[1742123211932,3.2078,1889.3,1888.9,47.4913]
[1742123212130,3.2078,1889.3,1888.9,42.29427628]
[1742123212322,3.2078,1889.5,1888.9,40.87997628]
[1742123212523,0.00792414,1889.3,1889.0,1.4143]
[1742123212725,0.00792414,1889.3,1889.2,3.2078]
[1742123212918,3.2078,1889.9,1889.2,3.2078]
[1742123212919,3.2078,1889.9,1889.2,4.6221]
[1742123213120,3.13574786,1889.7,1889.2,3.2078]
[1742123213325,3.2078,1889.5,1889.1,0.00792414]
[1742123213829,3.2078,1889.4,1889.1,0.00792414]
[1742123214028,9.78,1890.1,1889.1,8.69672414]
[1742123214029,3.2078,1889.6,1889.1,8.69672414]
[1742123214230,3.2078,1889.4,1889.1,0.00792414]
[1742123214826,1.3993,1889.3,1889.1,0.00792414]
[1742123215130,0.00792414,1889.5,1889.2,3.2078]
[1742123215331,0.00792414,1889.5,1889.3,1.4462]
[1742123215529,1.3993,1890.3,1889.4,8.7648]
[1742123215732,1.3993,1890.3,1889.7,3.2078]
[1742123215924,3.2078,1890.2,1889.8,7.0032]
[1742123216126,3.2078,1889.9,1889.8,6.9932]
[1742123216531,3.2078,1889.9,1889.8,1.4462]
[1742123216731,0.00792414,1890.0,1889.8,1.4462]
[1742123217436,0.00792414,1890.0,1889.9,40.8]
[1742123218137,0.00792414,1890.0,1889.9,42.2625]
[1742123219233,0.00792414,1890.0,1889.9,47.7825]
[1742123220829,3.2078,1891.3,1890.0,3.2078]
[1742123221143,3.2078,1891.3,1890.7,3.2078]
[1742123221436,1.3687,1891.2,1890.8,36.1747]
[1742123221733,1.3687,1891.2,1890.9,1.3247]
[1742123221935,0.6745,1891.6,1890.9,1.3247]
[1742123221936,3.8823,1891.6,1890.9,4.5325]
[1742123222132,0.6745,1891.6,1890.9,4.5325]
[1742123222334,3.8823,1891.6,1890.9,4.5325]
[1742123222732,0.6745,1891.6,1890.9,4.5325]
[1742123222936,3.2078,1891.8,1891.3,3.2078]
[1742123223135,3.2078,1892.0,1891.4,1.3247]
[1742123223341,3.2078,1892.0,1891.4,6.8267]
[1742123223537,0.00792414,1891.7,1891.4,6.8267]
[1742123223732,3.2078,1892.2,1891.4,6.8267]
[1742123223932,3.2078,1892.2,1891.6,3.2078]
[1742123224129,3.2078,1892.2,1891.7,30.729]
[1742123224436,3.2078,1892.2,1891.8,34.841]
[1742123224639,3.2078,1892.2,1891.9,1.4]
[1742123224939,0.715,1892.6,1892.0,8.7198]
[1742123224940,3.2078,1892.5,1892.0,8.7198]
[1742123225136,0.715,1892.6,1892.2,3.2078]
[1742123225438,3.2078,1893.1,1892.4,3.2078]
[1742123225742,1.3271,1893.0,1892.6,3.2078]
[1742123225934,1.3271,1893.0,1892.7,6.902]
[1742123226242,0.00504389,1893.0,1892.7,6.90992414]
[1742123226542,3.21284389,1893.0,1892.7,0.00792414]
[1742123226737,3.2078,1892.8,1892.7,0.00792414]
[1742123227541,5.7078,1892.8,1892.7,0.00792414]
[1742123228041,3.2078,1892.8,1892.7,0.00792414]
[1742123228839,5.7078,1892.8,1892.7,0.00792414]
[1742123229443,3.2078,1892.8,1892.7,0.00792414]
[1742123231437,12.8602,1892.8,1891.9,5.464]
[1742123231637,3.2078,1892.3,1891.9,6.838]
[1742123231837,3.2078,1892.1,1891.9,6.838]
[1742123232243,3.2078,1892.1,1892.0,5.449]
[1742123232445,1.3455,1892.0,1890.9,3.2078]
[1742123232750,4.5533,1892.0,1891.2,1.4065]
[1742123233048,3.2078,1892.0,1891.5,3.2078]
[1742123233243,3.2078,1892.0,1891.6,1.4065]
[1742123233444,1.4592,1891.9,1891.6,1.4065]
[1742123233640,3.2078,1891.8,1891.7,5.486]
[1742123233847,3.2078,1891.8,1891.3,5.98792414]
[1742123234045,3.2078,1891.6,1891.4,6.8865]
[1742123234239,3.2078,1891.6,1891.4,1.4065]
[1742123234442,3.2078,1891.6,1891.4,5.472]
[1742123234443,1.4592,1891.5,1891.4,5.472]
[1742123234747,3.2078,1891.9,1891.4,5.472]
[1742123235139,3.2078,1891.7,1891.3,46.30792414]
[1742123235341,3.2078,1891.7,1891.3,40.80792414]
[1742123235540,9.694,1892.0,1891.4,6.9155]
[1742123235740,3.2078,1891.6,1891.4,6.9155]
[1742123235947,1.4432,1891.5,1891.4,1.4065]
[1742123236147,1.4432,1891.5,1891.3,40.80792414]
[1742123236148,1.4432,1891.5,1891.3,46.31492414]
[1742123236339,3.2078,1891.4,1891.3,0.00792414]
[1742123236841,1.4432,1891.5,1891.3,0.00792414]
[1742123237046,1.4432,1891.5,1891.3,1.34002414]
[1742123237647,4.651,1891.9,1891.3,1.34002414]
[1742123237844,3.2078,1891.7,1891.3,1.34002414]
[1742123238046,3.868,1892.0,1891.5,3.2078]
[1742123238240,3.2078,1892.0,1891.6,6.8151]
[1742123238448,3.2078,1892.0,1891.7,1.3321]
[1742123239252,3.2078,1892.0,1891.7,6.8071]
[1742123239448,1.3774,1891.9,1891.7,6.8071]
[1742123240255,3.2078,1891.8,1891.7,6.7901]
[1742123240447,3.2078,1891.8,1891.6,34.774]
[1742123242255,3.2078,1891.8,1891.7,1.4517]
[1742123242647,3.2078,1891.8,1891.7,6.8687]
[1742123243558,3.2078,1891.8,1891.6,29.32]
[1742123243744,1.3566,1891.7,1891.3,0.00792414]
[1742123243946,3.2078,1891.4,1891.3,0.00792414]
[1742123245650,3.2078,1891.4,1891.3,5.38792414]
[1742123246650,3.2078,1891.4,1891.3,5.37292414]
[1742123246856,3.2078,1891.4,1891.3,46.17292414]
[1742123247056,3.2078,1891.9,1891.3,46.17292414]
[1742123247257,4.5348,1891.9,1891.4,1.341]
[1742123248449,4.5853,1892.1,1891.4,1.341]
[1742123248650,5.9448,1892.1,1891.4,1.341]
[1742123249258,3.2078,1891.9,1891.4,1.341]
[1742123250160,3.2078,1891.9,1891.5,5.309]
[1742123250358,3.2078,1891.9,1891.6,1.4449]
[1742123250761,3.2078,1892.1,1891.6,4.6527]
[1742123251156,4.5597,1892.1,1891.7,1.3862]
[1742123251463,3.2078,1892.1,1891.7,1.3862]
[1742123252161,3.2078,1892.1,1891.7,2.0681]
[1742123252367,3.2078,1892.1,1891.8,40.8]
[1742123252663,3.2078,1891.9,1891.3,3.21572414]
[1742123252858,3.2078,1891.7,1891.4,1.3862]
[1742123253265,3.2078,1891.5,1891.4,1.3862]
[1742123253764,5.7078,1891.5,1891.3,0.00792414]
[1742123253965,1.3499,1891.4,1890.9,1.4568]
[1742123254166,3.2078,1891.1,1890.9,1.4568]
[1742123254563,1.3499,1891.0,1890.6,5.288]
[1742123254765,3.2078,1890.7,1890.6,5.288]
[1742123254965,3.2078,1890.9,1890.6,0.00792414]
[1742123255659,3.2078,1890.7,1890.6,0.00792414]
[1742123256862,5.7078,1890.7,1890.3,1.4454]
[1742123257062,1.3793,1890.6,1890.4,1.4454]
[1742123257264,3.2078,1890.5,1890.4,1.4454]
[1742123258465,3.2078,1890.7,1890.4,1.4454]
[1742123258669,0.00792414,1891.0,1890.4,4.6532]
[1742123258857,0.00792414,1891.0,1890.9,40.8]
[1742123259165,0.00792414,1891.0,1890.9,46.041]
[1742123259664,0.00792414,1891.0,1890.9,47.4864]
[1742123259869,3.2078,1891.3,1890.9,42.2454]
[1742123260067,3.2078,1891.3,1891.0,5.227]
[1742123260264,3.2078,1891.3,1891.1,1.4411]
[1742123261668,0.00792414,1891.4,1891.1,1.4411]
[1742123262371,0.00792414,1891.4,1891.2,3.2078]
[1742123262557,0.00792414,1891.4,1891.3,1.4411]
[1742123263171,3.21572414,1891.4,1891.1,29.329]
[1742123263370,3.21572414,1891.4,1891.2,1.3889]
[1742123264978,3.2078,1892.1,1891.3,3.8722]
[1742123265279,3.2078,1892.1,1891.6,3.2078]
[1742123265470,21.71760803,1892.0,1891.7,5.163]
[1742123265969,21.72553217,1892.0,1891.7,5.17092414]
[1742123266375,20.33303217,1892.0,1891.7,5.17092414]
[1742123267182,0.00792414,1892.0,1891.7,5.17092414]
[1742123267383,1.38672414,1892.0,1891.7,5.17092414]
[1742123268189,1.38672414,1892.0,1891.7,5.12792414]
[1742123268392,3.2078,1891.9,1891.7,5.12792414]
[1742123268587,1.3788,1891.8,1891.7,5.12792414]
[1742123269398,0.00792414,1892.0,1891.7,5.12792414]
[1742123269599,0.00792414,1892.0,1891.8,1.4635]
[1742123270093,1.35422414,1892.0,1891.8,1.4635]
[1742123270687,3.2078,1891.9,1891.7,0.00792414]
[1742123270887,1.3463,1891.8,1891.7,0.00792414]
[1742123274091,4.5541,1891.8,1891.7,0.00792414]
[1742123274292,1.3463,1891.8,1891.7,0.00792414]
[1742123275503,18.29259722,1891.9,1891.7,0.00792414]
[1742123275805,18.29259722,1891.9,1891.7,1.33582414]
[1742123277403,4.6011,1891.8,1891.7,0.00792414]
[1742123280901,7.1011,1891.8,1891.4,3.2078]
[1742123281201,4.6011,1891.8,1891.4,3.2078]
[1742123281588,3.2078,1891.6,1890.8,9.1878]
[1742123281792,23.27059722,1891.9,1890.8,9.5524]
[1742123281793,3.2078,1891.3,1890.8,9.5524]
[1742123281994,1.4528,1891.2,1890.8,9.5524]
[1742123282203,1.4528,1891.2,1891.0,0.00792414]
[1742123282704,3.2078,1891.3,1891.0,1.37352414]
[1742123282905,1.4528,1891.4,1891.2,1.3656]
[1742123283096,4.6606,1891.4,1891.2,1.3656]
[1742123283590,1.4528,1891.4,1891.2,1.3656]
[1742123283997,1.4528,1891.4,1891.2,6.3186]
[1742123284196,1.4528,1891.6,1891.2,6.3186]
[1742123284700,19.73209722,1891.9,1891.3,3.2078]
[1742123284701,18.29259722,1891.9,1891.3,3.2078]
[1742123284903,19.71519722,1891.9,1891.4,1.4195]
[1742123289103,19.71519722,1891.9,1891.4,7.3995]
[1742123291111,3.2078,1891.6,1891.4,5.98]
[1742123291313,1.3591,1891.5,1891.4,5.98]
[1742123291809,19.04019722,1891.9,1891.4,5.98]
[1742123292002,4.5669,1891.8,1891.4,5.98]
[1742123292198,4.5669,1891.8,1891.1,38.1617]
[1742123292199,3.2078,1891.6,1891.1,35.6213]
[1742123292503,1.3591,1891.5,1891.1,30.7233]
[1742123292703,1.3591,1891.5,1891.1,35.6203]
[1742123293402,1.3591,1891.5,1891.2,1.3943]
[1742123294008,3.2078,1891.6,1891.2,1.3943]
[1742123294401,1.3201,1891.7,1891.2,7.3743]
[1742123296813,1.3201,1891.7,1891.3,3.2078]
[1742123297115,1.3201,1891.7,1891.4,1.3894]
[1742123297318,1.3201,1891.7,1891.5,4.854]
[1742123298317,1.3201,1891.7,1891.6,1.3894]
[1742123299318,1.3201,1891.7,1891.5,4.854]
[1742123299617,3.2078,1891.6,1891.1,32.5368]
[1742123299816,3.2078,1891.6,1891.2,4.825]
[1742123299817,1.4067,1891.5,1891.2,4.825]
[1742123300813,1.4067,1891.5,1891.1,37.3488]
[1742123301013,3.2078,1891.2,1891.1,29.329]
[1742123301517,10.5198,1891.2,1890.1,13.9998]
[1742123301717,3.2078,1890.6,1890.1,15.4641]
[1742123301919,3.2078,1890.6,1890.2,42.2643]
[1742123302114,1.21998717,1891.1,1890.2,42.2643]
[1742123302115,1.21998717,1891.1,1890.3,9.1878]
[1742123302316,1.4067,1891.1,1890.7,3.2078]
[1742123302617,5.11628717,1891.4,1890.8,35.5253]
[1742123302920,0.00792414,1891.1,1890.8,36.2307]
[1742123303113,0.00792414,1891.1,1890.9,1.3893]
[1742123303416,18.29357061,1891.1,1890.9,7.3693]
[1742123303623,18.29357061,1891.1,1890.9,13.8048]
[1742123305116,0.00792414,1891.1,1890.9,13.8048]
[1742123305419,18.28564647,1891.3,1890.9,13.8048]
[1742123305615,18.28564647,1891.3,1891.1,3.2078]
[1742123305815,18.28564647,1891.3,1891.2,6.2521]
[1742123306218,19.63244647,1891.3,1891.1,4.778]
[1742123306419,19.63244647,1891.3,1891.2,40.8]
[1742123307027,19.63244647,1891.3,1891.2,42.2631]
[1742123309229,18.28564647,1891.3,1891.2,42.2631]
[1742123309727,18.28564647,1891.3,1891.2,44.7631]
[1742123310534,18.28564647,1891.3,1891.2,42.2631]
[1742123311030,14.35497061,1891.3,1891.2,50.7431]
[1742123312432,0.00792414,1891.4,1891.2,50.7431]
[1742123312634,0.00792414,1891.4,1891.3,9.8904]
[1742123313136,0.00792414,1891.4,1891.3,12.3904]
[1742123313336,0.00792414,1891.4,1891.3,53.1904]
[1742123315331,20.32510803,1891.6,1891.3,53.1904]
[1742123315530,20.32510803,1891.6,1891.5,3.2078]
[1742123315727,18.22871676,1891.6,1891.5,13.8828]
[1742123315932,9.60835696,1891.6,1891.5,18.4507]
[1742123316132,7.26857707,1891.6,1891.5,59.2507]
[1742123316338,3.87949323,1891.6,1891.5,59.2507]
[1742123316640,1.6776094,1891.6,1891.5,64.5197]
[1742123316835,4.6657,1893.0,1891.7,4.29446646]
[1742123317028,1.4269,1892.9,1892.1,3.2078]
[1742123317233,1.4269,1892.9,1892.1,14.69426646]
[1742123318038,0.00504389,1892.3,1892.1,14.69426646]